bitfinex/quotes_SOLUSD_20250102
["timestamp","ask_amount","ask_price","bid_price","bid_amount"]
[1735821248215,1.5797,208.55,208.47,24.49618153]
[1735821248391,12.44859761,208.54,208.48,12.44859761]
[1735821248598,12.44859761,208.54,208.49,0.7192206]
[1735821249313,12.44859761,208.54,208.5,23.776884]
[1735821249525,12.44859761,208.57,208.51,0.71922295]
[1735821249815,12.44859761,208.57,208.51,13.16782056]
[1735821250315,12.44859761,208.57,208.52,23.776884]
[1735821250495,12.44859761,208.58,208.51,13.16782056]
[1735821250701,1.656,208.65,208.51,0.71922295]
[1735821250702,12.44859761,208.56,208.51,0.71922295]
[1735821251298,12.44859761,208.57,208.52,23.776884]
[1735821251822,12.44859761,208.58,208.53,0.71909782]
[1735821252115,12.44859761,208.68,208.57,13.95059761]
[1735821252317,12.44859761,208.68,208.61,12.44859761]
[1735821252627,12.44859761,208.68,208.62,0.71876036]
[1735821252916,12.44859761,208.68,208.62,19.91676136]
[1735821253113,12.44859761,208.69,208.62,19.91676136]
[1735821253309,12.44859761,208.69,208.63,23.776884]
[1735821253490,12.44859761,208.69,208.62,19.91676136]
[1735821253491,12.44859761,208.69,208.62,32.36535897]
[1735821253696,12.44859761,208.69,208.62,19.91676136]
[1735821253916,12.44859761,208.69,208.51,1.5804]
[1735821253917,12.44859761,208.63,208.51,1.5804]
[1735821254089,12.44859761,208.56,208.51,1.5804]
[1735821254288,12.44859761,208.56,208.5,26.32215045]
[1735821254489,4.99999999,208.67,208.5,19.56492506]
[1735821254490,12.44859761,208.58,208.5,19.56492506]
[1735821255214,12.44859761,208.57,208.51,23.776884]
[1735821255394,12.44859761,208.58,208.53,23.776884]
[1735821255999,12.44859761,208.56,208.5,7.11627016]
[1735821256215,12.44859761,208.55,208.5,7.11627016]
[1735821256416,12.44859761,208.58,208.5,19.56486777]
[1735821256716,12.44859761,208.59,208.51,36.22548161]
[1735821256892,12.44859761,208.57,208.52,0.71908604]
[1735821258099,12.44859761,208.56,208.52,0.71908604]
[1735821259201,12.44859761,208.54,208.5,19.034097]
[1735821259407,12.44859761,208.55,208.51,0.71918747]
[1735821259604,12.44859761,208.56,208.52,23.776884]
[1735821259803,12.44859761,208.58,208.53,0.71910682]
[1735821260535,12.44859761,208.57,208.53,0.71910682]
[1735821260720,12.44859761,208.56,208.53,0.71910682]
[1735821261423,12.44859761,208.57,208.53,0.71910682]
[1735821263228,12.44859761,208.58,208.53,0.71910682]
[1735821263428,12.44859761,208.6,208.53,13.16770443]
[1735821263831,12.44859761,208.61,208.55,23.776884]
[1735821264035,12.44859761,208.63,208.57,23.776884]
[1735821264237,12.44859761,208.62,208.58,0.71889134]
[1735821264433,12.44859761,208.62,208.59,23.776884]
[1735821265427,12.44859761,208.63,208.59,23.776884]
[1735821265613,12.44859761,208.63,208.6,0.7188437]
[1735821266428,12.44859761,208.64,208.61,23.776884]
[1735821266922,12.44859761,208.63,208.61,23.776884]
[1735821268131,12.44859761,208.63,208.6,0.7188437]
[1735821268132,6.3594,208.78,208.63,23.776884]
[1735821268321,7.9516869,208.73,208.67,23.776884]
[1735821268523,7.9516869,208.73,208.68,0.71854754]
[1735821268835,7.9516869,208.72,208.68,0.71854754]
[1735821269333,7.9516869,208.72,208.69,23.776884]
[1735821269534,7.9516869,208.73,208.7,0.71847938]
[1735821270339,12.42440118,208.75,208.71,23.776884]
[1735821270538,12.42440118,208.76,208.73,23.776884]
[1735821271536,12.42440118,208.77,208.73,23.776884]
[1735821272243,12.42440118,208.78,208.73,23.776884]
[1735821272457,12.42440118,208.79,208.75,23.776884]
[1735821272762,12.42440118,208.82,208.77,23.776884]
[1735821272915,12.42440118,208.85,208.79,23.776884]
[1735821273119,12.42440118,208.85,208.8,0.71813636]
[1735821274245,13.93270118,208.9,208.81,23.776884]
[1735821274246,12.42440118,208.86,208.81,23.776884]
[1735821274453,12.42440118,208.87,208.81,23.776884]
[1735821274653,12.42440118,208.87,208.82,0.71808191]
[1735821275355,12.42440118,208.9,208.83,36.20128518]
[1735821275527,1.542,208.95,208.85,12.42440118]
[1735821275731,12.42440118,208.91,208.86,0.71790409]
[1735821276055,1.542,208.95,208.83,0.71797838]
[1735821276056,12.42440118,208.87,208.83,0.71797838]
[1735821276225,12.42440118,208.88,208.83,0.71797838]
[1735821276425,12.42440118,208.89,208.84,23.776884]
[1735821276634,12.42440118,208.89,208.85,0.717976]
[1735821276929,12.42440118,208.9,208.85,0.717976]
[1735821277132,12.42440118,208.89,208.83,0.71796069]
[1735821277439,12.42440118,208.88,208.83,0.71796069]
[1735821277771,12.42440118,208.88,208.84,12.424402]
[1735821278361,12.42440118,208.89,208.84,12.424402]
[1735821278655,12.42440118,208.89,208.85,0.71798568]
[1735821278946,12.42440118,208.9,208.85,0.71798568]
[1735821279120,12.42440118,208.88,208.84,12.424402]
[1735821279326,12.42440118,208.87,208.83,0.71802837]
[1735821279529,12.42440118,208.9,208.84,36.201286]
[1735821279737,6.635,208.98,208.86,23.776884]
[1735821279738,11.9638,208.97,208.86,23.776884]
[1735821279939,6.635,208.98,208.88,23.776884]
[1735821280162,13.21140118,208.94,208.89,0.71786258]
[1735821280337,0.787,208.94,208.9,23.776884]
[1735821281759,12.42440118,208.91,208.84,12.424402]
[1735821281947,12.42440118,208.87,208.84,12.424402]
[1735821282468,12.42440118,208.89,208.84,12.424402]
[1735821282631,12.42440118,208.9,208.85,23.776884]
[1735821283062,12.42440118,208.9,208.84,12.424402]
[1735821283259,12.42440118,208.89,208.84,12.424402]
[1735821284066,12.42440118,208.87,208.84,12.424402]
[1735821284232,12.42440118,208.9,208.83,12.42440118]
[1735821284432,0.787,208.94,208.85,36.20128518]
[1735821284661,12.42440118,208.93,208.86,12.42440118]
[1735821284857,0.787,208.94,208.82,12.424401]
[1735821285440,12.42440118,208.9,208.84,12.42440118]
[1735821285635,12.42440118,208.9,208.85,0.7179759]
[1735821286334,12.42440118,208.9,208.83,23.776884]
[1735821286550,12.42440118,208.9,208.83,0.71801173]
[1735821286786,12.42440118,208.9,208.84,0.71808045]
[1735821287504,12.42440118,208.9,208.82,25.56679743]
[1735821287701,12.42440118,208.9,208.82,13.14239625]
[1735821287985,12.42440118,208.88,208.82,13.14239625]
[1735821289398,12.42440118,208.88,208.83,23.776884]
[1735821289803,12.42440118,208.88,208.82,13.14239625]
[1735821289970,12.42440118,208.88,208.82,0.71799525]
[1735821290486,12.42440118,208.88,208.83,23.776884]
[1735821291377,12.42440118,208.88,208.81,13.14248481]
[1735821292296,12.42440118,208.9,208.82,23.776884]
[1735821294400,12.42440118,208.9,208.83,0.71804639]
[1735821295278,12.42440118,208.9,208.81,13.1424665]
[1735821295473,12.42440118,208.88,208.81,13.1424665]
[1735821296001,12.42440118,208.88,208.82,23.776884]
[1735821296364,7.0499,208.94,208.83,0.71809385]
[1735821296607,12.42440118,208.9,208.83,0.71809385]
[1735821298479,12.42440118,208.88,208.82,23.776884]
[1735821298670,12.42440118,208.88,208.82,24.49498801]
[1735821299300,12.42440118,208.9,208.82,24.49498801]
[1735821301004,12.42440118,208.88,208.82,24.49498801]
[1735821301477,12.42440118,208.9,208.82,24.49498801]
[1735821301676,12.42440118,208.9,208.83,12.42440118]
[1735821301880,13.93270118,208.91,208.84,0.71798815]
[1735821302427,7.93915931,208.9,208.84,0.71798815]
[1735821302905,7.93915931,208.89,208.84,0.71798815]
[1735821303289,7.93915931,208.89,208.85,23.776884]
[1735821303476,7.93915931,208.91,208.85,23.776884]
[1735821304497,7.93915931,208.9,208.85,23.776884]
[1735821305115,0.787,208.94,208.85,23.776884]
[1735821305440,7.93915931,208.91,208.86,0.71798817]
[1735821307915,7.93915931,208.9,208.86,0.71798817]
[1735821311333,7.93915931,208.9,208.87,23.776884]
[1735821312012,7.93915931,208.9,208.86,0.71794609]
[1735821312204,7.93915931,208.9,208.84,0.71794128]
[1735821312422,7.93915931,208.9,208.85,23.776884]
[1735821312606,7.93915931,208.9,208.84,0.71794128]
[1735821312949,7.93915931,208.88,208.84,0.71794128]
[1735821313244,7.93915931,208.88,208.82,0.7180581]
[1735821313405,7.93915931,208.86,208.82,0.7180581]
[1735821313608,7.93915931,208.87,208.83,23.776884]
[1735821318257,7.93915931,208.87,208.82,0.7180581]
[1735821318442,7.93915931,208.86,208.82,0.7180581]
[1735821318644,7.93915931,208.87,208.82,0.7180581]
[1735821319336,7.93915931,208.88,208.83,23.776884]
[1735821319657,7.93915931,208.88,208.84,0.71798822]
[1735821319848,7.93915931,208.88,208.82,0.71805369]
[1735821320359,7.93915931,208.89,208.83,23.776884]
[1735821320534,7.93915931,208.9,208.85,23.776884]
[1735821320734,7.93915931,208.89,208.84,0.7179538]
[1735821321227,7.93915931,208.88,208.84,0.7179538]
[1735821321432,7.93915931,208.9,208.85,23.776884]
[1735821324354,7.93915931,208.89,208.84,0.7179538]
[1735821324660,7.93915931,208.89,208.81,7.93915931]
[1735821324833,7.93915931,208.88,208.81,8.65726593]
[1735821325429,7.93915931,208.87,208.81,0.71810662]
[1735821325655,7.93915931,208.86,208.81,0.71810662]
[1735821325867,7.93915931,208.84,208.77,7.93915931]
[1735821326961,1.651,208.88,208.77,7.93915931]
[1735821326962,7.93915931,208.83,208.77,7.93915931]
[1735821327167,7.93915931,208.82,208.75,0.71816653]
[1735821327460,7.93915931,208.82,208.76,0.71831286]
[1735821327773,7.93915931,208.81,208.75,7.93915931]
[1735821328140,7.93915931,208.81,208.75,20.0]
[1735821328440,7.93915931,208.8,208.74,23.776884]
[1735821328956,7.93915931,208.76,208.68,0.71837986]
[1735821329170,7.93915931,208.74,208.67,9.54625931]
[1735821329465,7.93915931,208.74,208.67,0.71861737]
[1735821329767,7.93915931,208.69,208.64,7.44759692]
[1735821329968,7.93915931,208.67,208.64,7.44759692]
[1735821330137,7.93915931,208.66,208.61,9.546259]
[1735821330635,5.0,208.74,208.57,9.77358615]
[1735821330636,7.93915931,208.65,208.57,9.77358615]
[1735821330941,7.93915931,208.63,208.57,7.44759692]
[1735821331277,7.93915931,208.62,208.57,7.44759692]
[1735821331455,7.93915931,208.62,208.55,7.93915931]
[1735821331764,7.93915931,208.62,208.54,0.71906781]
[1735821331971,7.93915931,208.62,208.55,7.93915931]
[1735821332345,7.93915931,208.61,208.54,7.93915931]
[1735821332542,7.93915931,208.6,208.54,20.0]
[1735821332751,7.93915931,208.58,208.49,0.71914437]
[1735821332958,7.93915931,208.57,208.5,7.93915931]
[1735821333466,7.93915931,208.56,208.49,0.71914437]
[1735821333675,7.93915931,208.56,208.49,7.93915931]
[1735821333967,7.93915931,208.55,208.48,7.93915931]
[1735821334171,7.93915931,208.54,208.48,7.93915931]
[1735821334471,12.44816172,208.54,208.48,12.44816172]
[1735821334776,4.99999999,208.66,208.51,12.44816172]
[1735821334777,12.44816172,208.57,208.51,12.44816172]
[1735821335155,12.44816172,208.57,208.5,12.44816172]
[1735821335491,12.44816172,208.56,208.5,12.44816172]
[1735821335671,12.44816172,208.54,208.48,12.44816172]
[1735821335971,12.44816172,208.57,208.51,12.44816172]
[1735821336364,12.44816172,208.58,208.51,12.44816172]
[1735821337260,12.44816172,208.56,208.5,12.44816172]
[1735821337462,12.44816172,208.54,208.48,12.44816172]
[1735821337973,12.44816172,208.55,208.48,12.44816172]
[1735821339885,12.44816172,208.52,208.45,12.44816172]
[1735821340056,12.44816172,208.51,208.44,12.44816172]
[1735821340261,12.44816172,208.48,208.41,12.44816172]
[1735821340581,12.8381,208.56,208.41,12.44816172]
[1735821340582,12.44816172,208.47,208.41,12.44816172]
[1735821341480,20.0,208.52,208.41,12.44816172]
[1735821341670,12.44816172,208.48,208.41,12.44816172]
[1735821341871,12.44816172,208.46,208.4,12.44816172]
[1735821342080,12.44816172,208.44,208.38,12.44816172]
[1735821342402,12.44816172,208.43,208.37,12.44816172]
[1735821343073,12.44816172,208.44,208.38,12.44816172]
[1735821343483,12.44816172,208.44,208.39,23.776884]
[1735821343685,20.0,208.53,208.42,12.44816172]
[1735821343686,12.44816172,208.49,208.42,12.44816172]
[1735821343875,12.44816172,208.5,208.43,12.44816172]
[1735821344283,12.44816172,208.49,208.42,12.44816172]
[1735821344983,12.44816172,208.5,208.43,12.44816172]
[1735821346385,12.44816172,208.49,208.43,12.44816172]
[1735821346687,12.44816172,208.53,208.46,12.44816172]
[1735821346889,12.44816172,208.54,208.47,12.44816172]
[1735821347992,12.44816172,208.55,208.48,12.44816172]
[1735821348160,12.44816172,208.51,208.45,12.44816172]
[1735821348364,12.44816172,208.5,208.43,32.44816172]
[1735821349684,12.44816172,208.49,208.41,12.71455397]
[1735821349889,12.44816172,208.47,208.4,12.44816172]
[1735821350077,12.44816172,208.45,208.39,12.44816172]
[1735821352984,12.44816172,208.47,208.4,12.44816172]
[1735821354080,12.44816172,208.45,208.42,20.0]
[1735821354282,12.44816172,208.45,208.39,12.44816172]
[1735821355307,12.44816172,208.45,208.38,12.44816172]
[1735821356306,12.44816172,208.49,208.42,12.44816172]
[1735821356602,12.44816172,208.45,208.38,12.44816172]
[1735821356775,12.44816172,208.44,208.37,13.16783217]
[1735821356975,18.64749999,208.56,208.38,48.22234572]
[1735821357176,20.0,208.53,208.39,0.7196189]
[1735821357478,12.44816172,208.45,208.38,11.9973]
[1735821358023,12.44816172,208.45,208.38,24.44546172]
[1735821358305,12.44816172,208.46,208.38,24.44546172]
[1735821358487,12.44816172,208.47,208.4,12.44816172]
[1735821358893,12.44816172,208.48,208.41,12.44816172]
[1735821359206,12.44816172,208.46,208.39,0.71962533]
[1735821359414,12.44816172,208.43,208.36,30.83896172]
[1735821360204,12.44816172,208.43,208.36,11.9979]
[1735821360509,1.594,208.47,208.36,11.9979]
[1735821360510,12.44816172,208.41,208.36,11.9979]
[1735821361089,12.44816172,208.42,208.36,11.9979]
[1735821361283,12.44816172,208.43,208.36,24.44606172]
[1735821361801,12.44816172,208.41,208.36,11.9979]
[1735821362011,12.44816172,208.42,208.36,11.9979]
[1735821362531,1.594,208.47,208.37,12.44816172]
[1735821362820,1.594,208.47,208.36,25.16580119]
[1735821362993,12.44816172,208.43,208.36,11.9979]
[1735821363196,12.44816172,208.42,208.36,11.9979]
[1735821364725,12.44816172,208.41,208.37,20.0]
[1735821365309,12.44816172,208.41,208.34,12.44816172]
[1735821365709,12.44816172,208.41,208.34,13.16798151]
[1735821365926,12.44816172,208.4,208.34,0.71981979]
[1735821366625,12.44816172,208.41,208.34,13.16798151]
[1735821368032,12.44816172,208.4,208.34,0.71981979]
[1735821368331,12.44816172,208.39,208.33,13.5506]
[1735821369814,1.594,208.47,208.29,18.03672603]
[1735821369815,12.44816172,208.36,208.29,18.03672603]
[1735821370047,12.44816172,208.33,208.27,1.5829]
[1735821370641,12.44816172,208.32,208.27,12.0035]
[1735821371021,12.44816172,208.32,208.25,18.690362]
[1735821371022,12.44816172,208.32,208.25,12.44816172]
[1735821371352,12.44816172,208.31,208.24,12.44816172]
[1735821371842,12.44816172,208.33,208.26,12.44816172]
[1735821372346,12.44816172,208.34,208.27,12.44816172]
[1735821372517,12.44816172,208.33,208.26,32.44816172]
[1735821373221,1.6659,208.39,208.26,32.44816172]
[1735821373222,12.44816172,208.32,208.26,20.0]
[1735821374033,1.6659,208.39,208.29,12.44816172]
[1735821374240,12.44816172,208.37,208.29,12.44816172]
[1735821374441,12.44816172,208.36,208.29,12.44816172]
[1735821375046,12.44816172,208.37,208.3,12.44816172]
[1735821375357,12.44816172,208.38,208.31,12.44816172]
[1735821375524,12.44816172,208.38,208.32,32.44816172]
[1735821375717,12.44816172,208.4,208.33,12.44816172]
[1735821375917,12.44816172,208.39,208.32,32.44816172]
[1735821376123,1.6459,208.5,208.38,12.44816172]
[1735821376324,14.09406172,208.5,208.42,12.44816172]
[1735821376528,14.09406172,208.5,208.43,12.44816172]
[1735821376855,12.44816172,208.49,208.42,12.44816172]
[1735821377030,1.6459,208.5,208.39,12.44816172]
[1735821377031,12.44816172,208.46,208.39,12.44816172]
[1735821377236,1.6459,208.5,208.4,12.44816172]
[1735821377237,12.44816172,208.47,208.4,12.44816172]
[1735821377429,12.44816172,208.48,208.41,12.44816172]
[1735821379222,1.6459,208.5,208.39,12.44816172]
[1735821379223,12.44816172,208.46,208.39,12.44816172]
[1735821379420,12.44816172,208.45,208.38,12.44816172]
[1735821380042,12.44816172,208.45,208.39,12.44816172]
[1735821380346,12.44816172,208.45,208.38,12.44816172]
[1735821381140,12.44816172,208.45,208.39,12.44816172]
[1735821381732,12.44816172,208.4,208.31,12.0008]
[1735821381930,12.44816172,208.34,208.27,20.69836172]
[1735821382258,12.44816172,208.31,208.27,12.003]
[1735821382739,12.44816172,208.32,208.27,12.003]
[1735821383241,12.44816172,208.33,208.27,12.003]
[1735821385360,12.44816172,208.34,208.27,12.44816172]
[1735821385860,12.44816172,208.37,208.29,12.44816172]
[1735821386065,12.44816172,208.37,208.3,12.44816172]
[1735821386350,12.44816172,208.39,208.32,12.44816172]
[1735821386939,12.44816172,208.38,208.31,32.44816172]
[1735821387438,12.44816172,208.38,208.31,44.44916172]
[1735821388959,12.44816172,208.39,208.32,12.44816172]
[1735821389129,12.44816172,208.44,208.36,32.44816172]
[1735821390254,12.44816172,208.44,208.37,12.44816172]
[1735821390761,12.44816172,208.42,208.36,31.9979]
[1735821392349,1.6458,208.46,208.36,44.44606172]
[1735821392350,12.44816172,208.43,208.36,44.44606172]
[1735821392551,12.44816172,208.44,208.36,44.44606172]
[1735821393071,12.44816172,208.43,208.36,44.44606172]
[1735821393249,12.44816172,208.42,208.36,31.9979]
[1735821393744,12.44816172,208.42,208.36,20.0]
[1735821399952,12.44816172,208.41,208.36,20.0]
[1735821400157,12.44816172,208.4,208.33,12.0001]
[1735821401075,12.44816172,208.41,208.33,24.44826172]
[1735821408385,12.44816172,208.36,208.3,12.0018]
[1735821408597,12.44816172,208.35,208.3,12.0018]
[1735821408887,12.44816172,208.4,208.2,11.88629351]
[1735821408888,12.44816172,208.32,208.2,11.88629351]
[1735821409186,12.44816172,208.31,208.24,12.44816172]
[1735821409978,12.44816172,208.3,208.26,20.0]
[1735821410380,7.98456724,208.31,208.24,7.98456724]
[1735821411787,7.98456724,208.3,208.23,19.98996724]
[1735821412291,12.47680778,208.3,208.23,24.48220778]
[1735821418293,12.47680778,208.28,208.21,12.47680778]
[1735821418894,1.5327,208.36,208.23,36.25369178]
[1735821419101,12.47680778,208.32,208.25,12.47680778]
[1735821419284,1.5327,208.36,208.25,12.47680778]
[1735821419478,12.47680778,208.31,208.24,12.47680778]
[1735821419684,1.5327,208.36,208.24,12.47680778]
[1735821419884,12.47680778,208.3,208.23,32.47680778]
[1735821422583,1.5327,208.36,208.24,12.47680778]
[1735821422787,16.9955,208.41,208.24,12.47680778]
[1735821422788,12.47680778,208.37,208.3,12.47680778]
[1735821423108,1.5881,208.42,208.31,12.47680778]
[1735821423296,1.5881,208.42,208.29,6.1052]
[1735821423613,12.47680778,208.33,208.25,1.6072]
[1735821423805,12.47680778,208.33,208.26,12.47680778]
[1735821425008,35.772384,208.41,208.26,12.47680778]
[1735821425188,12.47680778,208.34,208.26,12.47680778]
[1735821425514,12.47680778,208.37,208.29,12.47680778]
[1735821426480,12.47680778,208.36,208.29,12.47680778]
[1735821428107,12.47680778,208.37,208.3,12.47680778]
[1735821428311,1.5881,208.42,208.33,12.47680778]
[1735821428609,12.47680778,208.39,208.33,12.47680778]
[1735821429279,12.47680778,208.35,208.29,12.47680778]
[1735821429497,12.47680778,208.35,208.28,12.47680778]
[1735821430119,12.47680778,208.35,208.29,32.47680778]
[1735821430327,12.47680778,208.36,208.29,32.47680778]
[1735821432122,12.47680778,208.34,208.27,12.47680778]
[1735821432509,12.47680778,208.32,208.25,14.08400778]
[1735821432820,23.776884,208.38,208.24,6.1052]
[1735821432821,12.47680778,208.3,208.24,6.1052]
[1735821433403,12.47680778,208.29,208.22,12.47680778]
[1735821433813,16.99719999,208.39,208.24,20.0]
[1735821433814,12.47680778,208.3,208.24,20.0]
[1735821434018,12.47680778,208.31,208.24,32.47680778]
[1735821434204,7.98371218,208.32,208.25,7.98371218]
[1735821436934,7.98371218,208.36,208.29,27.98371218]
[1735821437633,7.98371218,208.35,208.25,12.72484228]
[1735821437841,7.98371218,208.35,208.28,7.98371218]
[1735821438131,7.98371218,208.33,208.26,7.98371218]
[1735821438316,7.98371218,208.33,208.22,12.0065]
[1735821438643,7.98371218,208.33,208.26,7.98371218]
[1735821438844,7.98371218,208.33,208.25,7.98371218]
[1735821440652,7.98371218,208.33,208.26,7.98371218]
[1735821440932,7.98371218,208.34,208.27,27.98371218]
[1735821441408,7.98371218,208.35,208.27,27.98371218]
[1735821442433,7.98371218,208.36,208.29,7.98371218]
[1735821443237,7.98371218,208.36,208.28,7.98371218]
[1735821443738,7.98371218,208.36,208.29,13.5831]
[1735821444141,7.98371218,208.36,208.28,7.98371218]
[1735821444323,7.98371218,208.36,208.29,13.5831]
[1735821444519,7.98371218,208.34,208.29,13.5831]
[1735821444846,7.98371218,208.34,208.29,20.0]
[1735821445338,7.98371218,208.34,208.28,13.5831]
[1735821446146,7.98371218,208.34,208.26,7.98371218]
[1735821446317,7.98371218,208.34,208.27,19.229465]
[1735821447048,7.98371218,208.34,208.27,27.21317718]
[1735821447636,7.98371218,208.34,208.27,39.229465]
[1735821447808,7.98371218,208.34,208.27,47.21317718]
[1735821449440,7.98371218,208.35,208.27,47.21317718]
[1735821450621,7.98371218,208.32,208.27,39.229465]
[1735821450815,7.98371218,208.32,208.27,20.0]
[1735821451338,7.98371218,208.31,208.22,23.776884]
[1735821451541,7.98371218,208.31,208.23,7.98371218]
[1735821451718,7.98371218,208.3,208.23,27.21660718]
[1735821453355,1.5657,208.33,208.24,7.98371218]
[1735821453652,7.98371218,208.34,208.27,7.98371218]
[1735821454444,7.98371218,208.33,208.26,7.98371218]
[1735821456140,7.98371218,208.32,208.25,7.98371218]
[1735821457557,7.98371218,208.31,208.24,7.98371218]
[1735821458257,7.98371218,208.31,208.23,19.232895]
[1735821458457,6.6651,208.36,208.21,0.72009672]
[1735821458458,7.98371218,208.28,208.21,7.98371218]
[1735821458653,7.98371218,208.28,208.18,0.72020447]
[1735821458957,7.98371218,208.27,208.22,7.983712]
[1735821459155,7.98371218,208.28,208.21,7.98371218]
[1735821459334,7.98371218,208.28,208.21,15.96742418]
[1735821459971,7.98371218,208.28,208.27,0.25]
[1735821466536,7.98371218,208.29,208.27,0.25]
[1735821466737,9.50341218,208.3,208.27,0.25]
[1735821467388,7.98371218,208.29,208.27,0.25]
[1735821468451,7.98371218,208.28,208.27,0.25]
[1735821474444,31.76059618,208.28,208.27,0.25]
[1735821477778,7.98371218,208.28,208.27,0.25]
[1735821480072,1.5197,208.3,208.27,0.25]
[1735821480282,7.98371218,208.31,208.27,0.25]
[1735821480663,7.98371218,208.33,208.27,0.25]
[1735821481062,7.98371218,208.32,208.27,0.25]
[1735821481649,7.98371218,208.3,208.27,0.25]
[1735821483380,7.98371218,208.31,208.27,0.25]
[1735821483586,7.98371218,208.32,208.27,0.25]
[1735821483770,1.6024,208.36,208.27,0.25]
[1735821484080,7.98371218,208.29,208.27,0.25]
[1735821485287,23.776884,208.37,208.27,0.25]
[1735821485455,7.98371218,208.28,208.27,0.25]
[1735821486398,1.6399,208.34,208.27,0.25]
[1735821486567,7.98371218,208.29,208.27,0.25]
[1735821488087,7.98371218,208.28,208.27,0.25]
[1735821489084,7.98371218,208.29,208.27,0.25]
[1735821489994,10.27923884,208.36,208.29,23.776884]
[1735821490160,7.35033438,208.4,208.34,7.98371218]
[1735821490585,15.33404656,208.4,208.32,7.98371218]
[1735821490907,7.98371218,208.38,208.3,8.70369141]
[1735821491267,7.98371218,208.38,208.31,7.98371218]
[1735821492891,7.98371218,208.39,208.32,7.98371218]
[1735821493397,15.33404656,208.51,208.39,23.776884]
[1735821493684,15.33404656,208.51,208.43,7.98371218]
[1735821494086,15.33404656,208.51,208.44,23.776884]
[1735821494388,7.35033438,208.51,208.44,23.776884]
[1735821494587,7.98371218,208.52,208.44,23.776884]
[1735821496392,12.454858,208.48,208.42,11.9949]
[1735821496768,12.454858,208.49,208.42,24.449758]
[1735821497399,12.454858,208.49,208.42,12.454858]
[1735821497575,12.454858,208.48,208.41,12.454858]
[1735821499587,12.454858,208.49,208.42,12.454858]
[1735821499889,12.454858,208.47,208.4,12.454858]
[1735821501203,12.454858,208.48,208.4,12.454858]
[1735821501387,12.454858,208.48,208.41,12.454858]
[1735821501690,12.454858,208.47,208.4,12.454858]
[1735821502063,12.454858,208.41,208.33,11.9999]
[1735821502272,12.454858,208.44,208.37,12.454858]
[1735821502489,12.454858,208.45,208.37,12.454858]
[1735821503791,12.454858,208.47,208.4,12.454858]
[1735821504001,12.454858,208.47,208.39,12.454858]
[1735821504167,12.454858,208.46,208.39,23.776884]
[1735821504366,12.454858,208.46,208.38,12.454858]
[1735821504777,12.454858,208.47,208.39,12.454858]
[1735821504976,12.454858,208.46,208.39,12.454858]
[1735821505189,12.454858,208.46,208.38,12.454858]
[1735821505905,12.454858,208.45,208.38,12.454858]
[1735821507409,12.454858,208.46,208.38,12.454858]
[1735821508896,12.454858,208.48,208.4,12.454858]
[1735821509187,12.454858,208.48,208.41,12.454858]
[1735821509985,12.454858,208.48,208.4,12.454858]
[1735821512114,12.454858,208.48,208.41,12.454858]
[1735821512491,16.93973274,208.51,208.43,12.454858]
[1735821514417,12.454858,208.5,208.43,12.454858]
[1735821514609,12.454858,208.48,208.4,12.454858]
[1735821518215,7.97220486,208.48,208.4,7.97220486]
[1735821519820,7.97220486,208.5,208.4,7.97220486]
[1735821520119,7.97220486,208.5,208.42,7.97220486]
[1735821524031,7.97220486,208.48,208.39,11.9967]
[1735821524321,7.97220486,208.46,208.38,7.97220486]
[1735821524732,7.97220486,208.48,208.4,7.97220486]
[1735821527903,7.97220486,208.48,208.35,1.5435]
[1735821527904,7.97220486,208.43,208.35,7.97220486]
[1735821528104,7.97220486,208.42,208.34,19.97170486]
[1735821528405,7.97220486,208.41,208.34,7.97220486]
[1735821529317,7.97220486,208.42,208.34,7.97220486]
[1735821529513,7.97220486,208.42,208.35,7.97220486]
[1735821531902,7.97220486,208.43,208.35,7.97220486]
[1735821533235,7.97220486,208.39,208.32,12.0002]
[1735821533424,7.97220486,208.38,208.31,7.97220486]
[1735821533748,7.97220486,208.4,208.33,7.97220486]
[1735821534138,7.97220486,208.41,208.33,7.97220486]
[1735821534511,7.97220486,208.41,208.34,7.97220486]
[1735821536039,7.97220486,208.41,208.33,7.97220486]
[1735821538041,7.97220486,208.41,208.34,7.97220486]
[1735821539733,7.97220486,208.42,208.34,7.97220486]
[1735821539919,16.45331051,208.57,208.42,23.776884]
[1735821540123,15.32253924,208.55,208.47,7.97220486]
[1735821540436,7.35033438,208.54,208.47,7.97220486]
[1735821541335,7.97220486,208.55,208.47,7.97220486]
[1735821541549,7.97220486,208.53,208.47,7.97220486]
[1735821542261,7.97220486,208.53,208.45,7.97220486]
[1735821542445,7.97220486,208.52,208.44,7.97220486]
[1735821542644,7.97220486,208.52,208.45,7.97220486]
[1735821543038,7.97220486,208.53,208.46,7.97220486]
[1735821543358,1.5968,208.57,208.46,7.97220486]